fUSD/lending_fUSD_20250708
["ID","MTS","AMOUNT","RATE_DAILY","PERIOD"]
[370300859,1751941887022,-460.0,0.00031668,7]
[370300860,1751941887031,-460.0,0.00031668,7]
[370300861,1751941887042,-460.0,0.00031668,7]
[370300862,1751941887052,-1656.789343,0.00031668,7]
[370300863,1751941887062,-1656.789347,0.00031668,7]
[370300864,1751941887075,-151.0,0.00031678,7]
[370300865,1751941887085,-151.0,0.00031678,7]
[370300866,1751941887095,-151.0,0.00031678,7]
[370300867,1751941887104,-151.0,0.00031678,7]
[370300868,1751941887114,-151.0,0.00031678,7]
[370300869,1751941887123,-183.16421,0.00031678,7]
[370300870,1751941887133,-151.0,0.00031678,7]
[370300871,1751941887142,-151.0,0.00031678,7]
[370300872,1751941887318,-202.892321,0.00031679,7]
[370300873,1751941887328,-151.0,0.00031679,7]
[370300874,1751941887337,-225.86429,0.00031679,7]
[370300875,1751941887347,-286.25,0.0003168,2]
[370300876,1751941887358,-4908.69387604,0.00031682,2]
[370300877,1751941887366,-307.14831272,0.00031725,2]
[370300878,1751941887375,-1290.04863452,0.00031725,2]
[370300879,1751941887385,-21227.46478401,0.00031725,2]
[370300880,1751941887394,-500.0,0.00031777,7]
[370300881,1751941887404,-305.49945557,0.00031778,10]
[370300882,1751941887414,-300.0,0.00031778,10]
[370300883,1751941887424,-300.0,0.00031778,10]
[370300884,1751941887433,-217.74457467,0.00031778,7]
[370300885,1751941887443,-765.59,0.00031778,7]
[370300886,1751941887453,-1650.45,0.00031778,7]
[370300887,1751941887464,-521.53,0.00031778,7]
[370300888,1751941887475,-820.97,0.00031778,7]
[370300889,1751941887488,-242554.71089027,0.00031779,2]
[370300890,1751941887498,-151.0,0.00031779,7]
[370300891,1751941887507,-151.0,0.00031779,7]
[370300892,1751941887516,-151.0,0.00031779,7]
[370300893,1751941887526,-151.0,0.00031779,7]
[370300894,1751941887535,-151.0,0.00031779,7]
[370300895,1751941887544,-152.796477,0.00031779,7]
[370300896,1751941887554,-151.0,0.00031779,7]
[370300897,1751941887564,-151.0,0.00031779,7]
[370300898,1751941887575,-151.0,0.00031779,7]
[370300899,1751941887584,-151.0,0.00031779,7]
[370300900,1751941887593,-151.0,0.00031779,7]
[370300901,1751941887602,-151.0,0.00031779,7]
[370300902,1751941887611,-151.0,0.00031779,7]
[370300903,1751941887621,-164.052685,0.00031779,7]
[370300904,1751941887631,-151.0,0.00031779,7]
[370300905,1751941887643,-151.0,0.00031779,7]
[370300906,1751941887652,-151.0,0.00031779,7]
[370300907,1751941887662,-151.0,0.00031779,7]
[370300908,1751941887671,-151.217209,0.00031779,7]
[370300909,1751941887680,-151.0,0.00031779,7]
[370300910,1751941887690,-151.0,0.00031779,7]
[370300911,1751941887699,-441.078767,0.00031779,7]
[370300912,1751941887708,-151.0,0.00031779,7]
[370300913,1751941887718,-441.078767,0.00031779,7]
[370300914,1751941887727,-151.0,0.00031779,7]
[370300915,1751941887737,-151.0,0.00031779,7]
[370300916,1751941887746,-151.0,0.00031779,7]
[370300917,1751941887756,-300.0,0.00031779,10]
[370300918,1751941887765,-258.275655,0.00031779,7]
[370300919,1751941887775,-258.275661,0.00031779,7]
[370300920,1751941887785,-716.386919,0.00031779,7]
[370300921,1751941887794,-716.386911,0.00031779,7]
[370300922,1751941887803,-1650.45,0.00031779,7]
[370300923,1751941887812,-151.0,0.00031779,7]
[370300924,1751941887822,-521.53,0.00031779,7]
[370300925,1751941887832,-820.97,0.00031779,7]
[370300926,1751941887841,-500.0,0.0003178,7]
[370300927,1751941887851,-500.0,0.0003178,7]
[370300928,1751941887860,-500.0,0.0003178,7]
[370300929,1751941887869,-500.0,0.0003178,7]
[370300930,1751941887878,-500.0,0.0003178,7]
[370300931,1751941887888,-500.0,0.0003178,7]
[370300932,1751941887899,-1198.0,0.0003178,7]
[370300933,1751941887909,-591.50367736,0.0003178,2]
[370300934,1751941887919,-500.0,0.0003178,7]
[370300935,1751941887928,-500.0,0.0003178,60]
[370300936,1751941887938,-500.0,0.0003178,7]
[370300937,1751941887947,-566.0,0.0003178,7]
[370300938,1751941887957,-500.0,0.0003178,7]
[370300939,1751941887966,-580.0,0.0003178,7]
[370300940,1751941887975,-580.0,0.0003178,7]
[370300941,1751941887984,-460.87177018,0.0003178,7]
[370300942,1751941887993,-584.75,0.0003178,7]
[370300943,1751941888002,-460.0,0.0003178,7]
[370300944,1751941888011,-606.91598279,0.0003178,7]
[370300945,1751941888022,-857.46,0.0003178,7]
[370300946,1751941888031,-460.0,0.0003178,7]
[370300947,1751941888040,-460.0,0.0003178,7]
[370300948,1751941888049,-460.0,0.0003178,7]
[370300949,1751941888059,-460.0,0.0003178,7]
[370300950,1751941888069,-527.61941708,0.0003178,7]
[370300951,1751941888078,-460.0,0.0003178,7]
[370300952,1751941888087,-694.68,0.0003178,7]
[370300953,1751941888097,-460.0,0.0003178,7]
[370300954,1751941888107,-726.7,0.0003178,7]
[370300955,1751941888118,-490.84446236,0.0003178,7]
[370300956,1751941888127,-460.0,0.0003178,7]
[370300957,1751941888137,-460.0,0.0003178,7]
[370300958,1751941888147,-460.0,0.0003178,7]
[370300959,1751941888159,-695.84,0.0003178,7]
[370300960,1751941888170,-460.0,0.0003178,7]
[370300961,1751941888181,-460.0,0.0003178,7]
[370300962,1751941888191,-672.92,0.0003178,7]
[370300963,1751941888201,-460.0,0.0003178,7]
[370300964,1751941888210,-460.0,0.0003178,7]
[370300965,1751941888219,-301.55641535,0.0003178,7]
[370300966,1751941888231,-460.0,0.0003178,7]
[370300967,1751941888242,-460.0,0.0003178,7]
[370300968,1751941888252,-684.91,0.0003178,7]
[370300969,1751941888261,-460.0,0.0003178,7]
[370300970,1751941888271,-861.74,0.0003178,7]
[370300971,1751941888282,-226.05493088,0.0003178,7]
[370300972,1751941888292,-319.4,0.0003178,7]
[370300973,1751941888302,-460.0,0.0003178,7]
[370300974,1751941888311,-460.0,0.0003178,7]
[370300975,1751941888322,-460.0,0.0003178,7]
[370300976,1751941888331,-460.0,0.0003178,7]
[370300977,1751941888340,-460.0,0.0003178,7]
[370300978,1751941888350,-467.26177364,0.0003178,7]
[370300979,1751941888361,-460.0,0.0003178,7]
[370300980,1751941888372,-847.27,0.0003178,7]
[370300981,1751941888382,-184.56120946,0.0003178,7]
[370300982,1751941888391,-460.0,0.0003178,7]
[370300983,1751941888401,-752.26,0.0003178,7]
[370300984,1751941888411,-460.0,0.0003178,7]
[370300985,1751941888420,-460.0,0.0003178,7]
[370300986,1751941888430,-442.0340787,0.0003178,7]
[370300987,1751941888439,-591.48328995,0.0003178,7]
[370300988,1751941888448,-460.0,0.0003178,7]
[370300989,1751941888458,-460.0,0.0003178,7]
[370300990,1751941888467,-460.0,0.0003178,7]
[370300991,1751941888479,-460.0,0.0003178,7]
[370300992,1751941888489,-1129.21,0.0003178,7]
[370300993,1751941888498,-460.0,0.0003178,7]
[370300994,1751941888508,-591.07138127,0.0003178,7]
[370300995,1751941888519,-460.0,0.0003178,7]
[370300996,1751941888530,-859.22,0.0003178,7]
[370300997,1751941888540,-496.05,0.0003178,7]
[370300998,1751941888550,-727.29,0.0003178,7]
[370300999,1751941888561,-491.36,0.0003178,7]
[370301000,1751941888573,-460.0,0.0003178,7]
[370301001,1751941888582,-460.0,0.0003178,7]
[370301002,1751941888592,-460.0,0.0003178,7]
[370301003,1751941888602,-659.35,0.0003178,7]
[370301004,1751941888611,-1031.55,0.0003178,7]
[370301005,1751941888620,-683.97,0.0003178,7]
[370301006,1751941888630,-648.01,0.0003178,7]
[370301007,1751941888639,-1795.02,0.0003178,7]
[370301008,1751941888649,-460.0,0.0003178,7]
[370301009,1751941888658,-625.5,0.0003178,7]
[370301010,1751941888667,-529.46,0.0003178,7]
[370301011,1751941888677,-741.27,0.0003178,7]
[370301012,1751941888687,-460.0,0.0003178,7]
[370301013,1751941888697,-596.71,0.0003178,7]
[370301014,1751941888706,-460.0,0.0003178,7]
[370301015,1751941888715,-565.98,0.0003178,7]
[370301016,1751941888725,-460.0,0.0003178,7]
[370301017,1751941888734,-460.0,0.0003178,7]
[370301018,1751941888743,-739.48,0.0003178,7]
[370301019,1751941888753,-450.3,0.0003178,7]
[370301020,1751941888762,-864.46,0.0003178,7]
[370301021,1751941888771,-460.0,0.0003178,7]
[370301022,1751941888781,-794.88,0.0003178,7]
[370301023,1751941888790,-460.0,0.0003178,7]
[370301024,1751941888799,-795.15,0.0003178,7]
[370301025,1751941888809,-577.73,0.0003178,7]
[370301026,1751941888820,-900.95,0.0003178,7]
[370301027,1751941888829,-460.0,0.0003178,7]
[370301028,1751941888838,-216.70352632,0.0003178,7]
[370301029,1751941888847,-460.0,0.0003178,7]
[370301030,1751941888856,-824.52,0.0003178,7]
[370301031,1751941888865,-707.54,0.0003178,7]
[370301032,1751941888875,-460.0,0.0003178,7]
[370301033,1751941888885,-460.0,0.0003178,7]
[370301034,1751941888895,-460.0,0.0003178,7]
[370301035,1751941888904,-732.45,0.0003178,7]
[370301036,1751941888913,-460.0,0.0003178,7]
[370301037,1751941888922,-768.56,0.0003178,7]
[370301038,1751941888932,-707.7,0.0003178,7]
[370301039,1751941888941,-593.26,0.0003178,7]
[370301040,1751941888950,-460.0,0.0003178,7]
[370301041,1751941888959,-460.0,0.0003178,7]
[370301042,1751941888975,-672.14,0.0003178,7]
[370301043,1751941888997,-675.4,0.0003178,7]
[370301044,1751941889021,-460.0,0.0003178,7]
[370301045,1751941889045,-460.0,0.0003178,7]
[370301046,1751941889069,-460.0,0.0003178,7]
[370301047,1751941889103,-460.0,0.0003178,7]
[370301048,1751941889138,-460.0,0.0003178,7]
[370301049,1751941889168,-460.0,0.0003178,7]
[370301050,1751941889199,-727.11,0.0003178,7]
[370301051,1751941889225,-547.51,0.0003178,7]
[370301052,1751941889250,-541.55284238,0.0003178,7]
[370301053,1751941889266,-577.08,0.0003178,7]
[370301054,1751941889275,-716.92,0.0003178,7]
[370301055,1751941889284,-460.0,0.0003178,7]
[370301056,1751941889294,-460.0,0.0003178,7]
[370301057,1751941889304,-460.0,0.0003178,7]
[370301058,1751941889314,-797.4,0.0003178,7]
[370301059,1751941889330,-460.0,0.0003178,7]
[370301060,1751941889339,-460.0,0.0003178,7]
[370301061,1751941889349,-460.0,0.0003178,7]
[370301062,1751941889358,-1640.32,0.0003178,7]
[370301063,1751941889367,-681.43,0.0003178,7]
[370301064,1751941889376,-460.0,0.0003178,7]
[370301065,1751941889386,-2804.1,0.0003178,7]
[370301066,1751941889395,-460.0,0.0003178,7]
[370301067,1751941889405,-525.58,0.0003178,7]
[370301068,1751941889414,-460.0,0.0003178,7]
[370301069,1751941889423,-460.0,0.0003178,7]
[370301070,1751941889432,-460.0,0.0003178,7]
[370301071,1751941889442,-287.27444002,0.0003178,7]
[370301072,1751941889451,-1291.01,0.0003178,7]
[370301073,1751941889460,-413.245056,0.0003178,7]
[370301074,1751941889470,-385.978385,0.0003178,7]
[370301075,1751941889482,-460.0,0.0003178,7]
[370301076,1751941889491,-506.833832,0.0003178,7]
[370301077,1751941889500,-1520.65,0.0003178,7]
[370301078,1751941889510,-460.0,0.0003178,7]
[370301079,1751941889519,-695.98,0.0003178,7]
[370301080,1751941889530,-460.0,0.0003178,7]
[370301081,1751941889539,-781.09,0.0003178,7]
[370301082,1751941889548,-874.65,0.0003178,7]
[370301083,1751941889560,-460.0,0.0003178,7]
[370301084,1751941889570,-460.0,0.0003178,7]
[370301085,1751941889579,-460.0,0.0003178,7]
[370301086,1751941889589,-460.0,0.0003178,7]
[370301087,1751941889598,-540.64,0.0003178,7]
[370301088,1751941889607,-460.0,0.0003178,7]
[370301089,1751941889617,-566.89,0.0003178,7]
[370301090,1751941889626,-964.86,0.0003178,7]
[370301091,1751941889636,-460.0,0.0003178,7]
[370301092,1751941889645,-750.54,0.0003178,7]
[370301093,1751941889655,-460.0,0.0003178,7]
[370301094,1751941889664,-460.0,0.0003178,7]
[370301095,1751941889674,-774.26,0.0003178,7]
[370301096,1751941889683,-521.58,0.0003178,7]
[370301097,1751941889693,-460.0,0.0003178,7]
[370301098,1751941889702,-460.0,0.0003178,7]
[370301099,1751941889711,-644.93,0.0003178,7]
[370301100,1751941889720,-3222.1,0.0003178,7]
[370301101,1751941889730,-460.0,0.0003178,7]
[370301102,1751941889740,-460.0,0.0003178,7]
[370301103,1751941889749,-460.0,0.0003178,7]
[370301104,1751941889758,-460.0,0.0003178,7]
[370301105,1751941889768,-460.0,0.0003178,7]
[370301106,1751941889777,-686.42,0.0003178,7]
[370301107,1751941889787,-636.64,0.0003178,7]
[370301108,1751941889797,-460.0,0.0003178,7]
[370301109,1751941889806,-1580.2,0.0003178,7]
[370301110,1751941889816,-460.0,0.0003178,7]
[370301111,1751941889827,-650.64,0.0003178,7]
[370301112,1751941889836,-460.0,0.0003178,7]
[370301113,1751941889846,-664.74,0.0003178,7]
[370301114,1751941889855,-1231.87,0.0003178,7]
[370301115,1751941889864,-460.0,0.0003178,7]
[370301116,1751941889873,-460.0,0.0003178,7]
[370301117,1751941889882,-661.7,0.0003178,7]
[370301118,1751941889892,-460.0,0.0003178,7]
[370301119,1751941889902,-1589.43,0.0003178,7]
[370301120,1751941889911,-512.04,0.0003178,7]
[370301121,1751941889920,-300.0,0.0003178,2]
[370301122,1751941889930,-460.0,0.0003178,7]
[370301123,1751941889939,-460.0,0.0003178,7]
[370301124,1751941889948,-495.95,0.0003178,7]
[370301125,1751941889958,-460.0,0.0003178,7]
[370301126,1751941889967,-460.0,0.0003178,7]
[370301127,1751941889976,-301.44993448,0.0003178,7]
[370301128,1751941889985,-760.43,0.0003178,7]
[370301129,1751941889994,-489.62,0.0003178,7]
[370301130,1751941890005,-545.56,0.0003178,7]
[370301131,1751941890014,-460.0,0.0003178,7]
[370301132,1751941890023,-460.0,0.0003178,7]
[370301133,1751941890032,-512.95,0.0003178,7]
[370301134,1751941890041,-1798.1,0.0003178,7]
[370301135,1751941890051,-460.0,0.0003178,7]
[370301136,1751941890060,-460.0,0.0003178,7]
[370301137,1751941890069,-460.0,0.0003178,7]
[370301138,1751941890079,-460.0,0.0003178,7]
[370301139,1751941890089,-500.19,0.0003178,7]
[370301140,1751941890099,-632.57,0.0003178,7]
[370301141,1751941890112,-460.0,0.0003178,7]
[370301142,1751941890121,-312.34,0.0003178,7]
[370301143,1751941890130,-569.19770028,0.0003178,7]
[370301144,1751941890139,-460.0,0.0003178,7]
[370301145,1751941890148,-460.0,0.0003178,7]
[370301146,1751941890157,-460.0,0.0003178,7]
[370301147,1751941890167,-460.0,0.0003178,7]
[370301148,1751941890176,-879.29,0.0003178,7]
[370301149,1751941890185,-704.92,0.0003178,7]
[370301150,1751941890194,-496.6,0.0003178,7]
[370301151,1751941890203,-987.66,0.0003178,7]
[370301152,1751941890212,-1058.42,0.0003178,7]
[370301153,1751941890222,-509.90127116,0.0003178,7]
[370301154,1751941890231,-460.0,0.0003178,7]
[370301155,1751941890240,-639.08,0.0003178,7]
[370301156,1751941890250,-460.0,0.0003178,7]
[370301157,1751941890259,-914.42,0.0003178,7]
[370301158,1751941890268,-2293.03,0.0003178,7]
[370301159,1751941890278,-771.77,0.0003178,7]
[370301160,1751941890287,-460.0,0.0003178,7]
[370301161,1751941890297,-460.0,0.0003178,7]
[370301162,1751941890306,-738.52,0.0003178,7]
[370301163,1751941890315,-939.66,0.0003178,7]
[370301164,1751941890325,-483.92,0.0003178,7]
[370301165,1751941890335,-713.62,0.0003178,7]
[370301166,1751941890345,-688.34,0.0003178,7]
[370301167,1751941890354,-460.0,0.0003178,7]
[370301168,1751941890363,-1557.71,0.0003178,7]
[370301169,1751941890372,-1251.88,0.0003178,7]
[370301170,1751941890382,-650.21,0.0003178,7]
[370301171,1751941890392,-885.1,0.0003178,7]
[370301172,1751941890401,-576.5,0.0003178,7]
[370301173,1751941890411,-460.0,0.0003178,7]
[370301174,1751941890420,-943.29,0.0003178,7]
[370301175,1751941890430,-3802.92,0.0003178,7]
[370301176,1751941890440,-289.60063879,0.0003178,7]
[370301177,1751941890450,-460.0,0.0003178,7]
[370301178,1751941890460,-537.03859293,0.0003178,7]
[370301179,1751941890469,-460.0,0.0003178,7]
[370301180,1751941890481,-752.14,0.0003178,7]
[370301181,1751941890491,-899.61,0.0003178,7]
[370301182,1751941890501,-670.53,0.0003178,7]
[370301183,1751941890511,-670.65,0.0003178,7]
[370301184,1751941890521,-1576.93,0.0003178,7]
[370301185,1751941890531,-1202.89,0.0003178,7]
[370301186,1751941890540,-476.91873626,0.0003178,7]
[370301187,1751941890550,-725.10429292,0.00031781,2]
[370301188,1751941890560,-521.53,0.00031782,7]
[370301189,1751941890569,-151.0,0.00031783,7]
[370301190,1751941890579,-441.078767,0.00031783,7]
[370301191,1751941890587,-151.0,0.00031783,7]
[370301192,1751941890596,-441.078767,0.00031783,7]
[370301193,1751941890605,-468.71433102,0.00031787,7]
[370301194,1751941890614,-584.75,0.00031787,7]
[370301195,1751941890624,-500.63,0.00031787,7]
[370301196,1751941890633,-820.97,0.00031802,7]
[370301197,1751941890643,-155990.9867233,0.00031803,2]
[370301198,1751941890651,-286.25,0.00031825,2]
[370301199,1751941890661,-4974.46734,0.0003183,2]
[370301200,1751941890671,-186.94571824,0.00031841,2]
[370301201,1751941890680,-5390.8378684,0.00031872,2]
[370301202,1751941890689,-175.63,0.00031894,2]
[370301203,1751941890699,-1000.0,0.000319,2]
[370301204,1751941890708,-151.587639,0.00031901,7]
[370301205,1751941890718,-6799.31586289,0.00031908,2]
[370301206,1751941890727,-6799.31586287,0.00031908,2]
[370301207,1751941890736,-6799.31586287,0.00031908,2]
[370301208,1751941890746,-460.0,0.00031931,7]
[370301209,1751941890756,-460.0,0.00031931,7]
[370301210,1751941890766,-471.51,0.00031931,7]
[370301211,1751941890775,-825.78,0.00031931,7]
[370301212,1751941890785,-14649.94,0.00031931,7]
[370301213,1751941890796,-1433.74,0.00031931,7]
[370301214,1751941890806,-329.88171833,0.00031941,10]
[370301215,1751941890815,-224.37150072,0.00031941,7]
[370301216,1751941890826,-795.67,0.00031941,7]
[370301217,1751941890836,-460.0,0.00031941,7]
[370301218,1751941890845,-460.0,0.00031941,7]
[370301219,1751941890854,-460.0,0.00031941,7]
[370301220,1751941890863,-460.0,0.00031941,7]
[370301221,1751941890873,-460.0,0.00031941,7]
[370301222,1751941890883,-475.17434005,0.00031941,7]
[370301223,1751941890893,-460.0,0.00031941,7]
[370301224,1751941890902,-472.4,0.00031941,7]
[370301225,1751941890912,-460.0,0.00031941,7]
[370301226,1751941890921,-198.81878576,0.00031941,7]
[370301227,1751941890931,-460.0,0.00031941,7]
[370301228,1751941890940,-765.59,0.00031941,7]
[370301229,1751941890950,-460.0,0.00031941,7]
[370301230,1751941890960,-460.0,0.00031941,7]
[370301231,1751941890969,-460.0,0.00031941,7]
[370301232,1751941890979,-2.95386817,0.00031941,7]
[370301233,1751941891624,-514.7665842,0.00030136,7]
[370301234,1751941891636,-460.0,0.00030684,7]
[370301235,1751941891646,-7640.54,0.00030958,7]
[370301236,1751941891655,-428.63613183,0.00031941,7]
[370301237,1751941891664,-1574.36,0.00031941,7]
[370301238,1751941891673,-193.99947229,0.00031941,7]
[370301239,1751941891683,-984.09591168,0.00031941,7]
[370301240,1751941891711,-629.50408832,0.00031941,7]
[370301241,1751941891721,-719.33,0.00031941,7]
[370301242,1751941891732,-673.12,0.00031941,7]
[370301243,1751941891741,-397.44680899,0.00031941,7]
[370301244,1751941891751,-708.05,0.00031941,7]
[370301245,1751941891760,-948.82,0.00031941,7]
[370301246,1751941891770,-439.40231584,0.00031941,7]
[370301247,1751941891780,-496.19,0.00031941,7]
[370301248,1751941891789,-471.43045476,0.00031941,7]
[370301249,1751941892177,-1238.26820197,0.00026038,14]
[370301250,1751941892186,-711.73179803,0.00026866,16]
[370301251,1751941892223,-526.53640394,0.00026866,16]
[370301252,1751941892232,-1238.26820197,0.00027693,17]
[370301253,1751941892241,-1238.26820197,0.00028521,19]
[370301254,1751941892251,-560.22342293,0.0002912,2]
[370301255,1751941892260,-1238.26820197,0.00029348,20]
[370301256,1751941892269,-500.0,0.00030136,7]
[370301257,1751941892278,-460.0,0.00030136,7]
[370301258,1751941892287,-500.0,0.00030136,7]
[370301259,1751941892296,-460.0,0.00030136,7]
[370301260,1751941892305,-490.0,0.00030136,7]
[370301261,1751941892314,-1238.26820197,0.00030176,22]
[370301262,1751941892324,-500.0,0.00030296,7]
[370301263,1751941892333,-253.63598481,0.00030297,7]
[370301264,1751941892343,-460.0,0.00030297,7]
[370301265,1751941892351,-460.0,0.00030297,7]
[370301266,1751941892361,-500.0,0.00030409,7]
[370301267,1751941892370,-460.0,0.0003041,7]
[370301268,1751941892380,-460.0,0.0003041,7]
[370301269,1751941892389,-459.85,0.0003057,7]
[370301270,1751941892399,-572.09,0.00030571,7]
[370301271,1751941892408,-460.0,0.00030684,7]
[370301272,1751941892417,-460.0,0.00030684,7]
[370301273,1751941892427,-460.0,0.00030845,7]
[370301274,1751941892436,-460.0,0.00030958,7]
[370301275,1751941892445,-460.0,0.00030958,7]
[370301276,1751941892454,-1238.26820197,0.00031003,24]
[370301277,1751941892464,-460.0,0.00031119,7]
[370301278,1751941892476,-7640.54,0.00031232,7]
[370301279,1751941892489,-460.0,0.00031232,7]
[370301280,1751941892499,-460.0,0.00031393,7]
[370301281,1751941892509,-7640.54,0.00031506,7]
[370301282,1751941892521,-460.0,0.00031506,7]
[370301283,1751941892534,-460.0,0.00031667,7]
[370301284,1751941892543,-7640.54,0.0003178,7]
[370301285,1751941892553,-460.0,0.0003178,7]
[370301286,1751941892563,-1238.26820197,0.00031831,25]
[370301287,1751941892575,-265.28954524,0.00031941,7]
[370301288,1751941892584,-853.57,0.00031941,7]
[370301289,1751941892595,-460.0,0.00031941,7]
[370301290,1751941892605,-1296.79,0.00031941,7]
[370301291,1751941892615,-2941.08,0.00031941,7]
[370301292,1751941892625,-460.0,0.00031941,7]
[370301293,1751941892636,-460.0,0.00031941,7]
[370301294,1751941892645,-243.48756645,0.00031941,7]
[370301295,1751941892654,-490.0,0.00031941,7]
[370301296,1751941892665,-460.0,0.00031941,7]
[370301297,1751941892674,-460.0,0.00031941,7]
[370301298,1751941892684,-1194.33,0.00031941,7]
[370301299,1751941892694,-1895.61,0.00031941,7]
[370301300,1751941892703,-2040.43,0.00031941,7]
[370301301,1751941892713,-732.9,0.00031941,7]
[370301302,1751941892722,-1680.68,0.00031941,7]
[370301303,1751941892732,-1997.32,0.00031941,7]
[370301304,1751941892742,-578.89815096,0.00031941,7]
[370301305,1751941892752,-460.0,0.00031941,7]
[370301306,1751941892761,-460.0,0.00031941,7]
[370301307,1751941892770,-1958.96,0.00031941,7]
[370301308,1751941892780,-460.0,0.00031941,7]
[370301309,1751941892789,-460.0,0.00031941,7]
[370301310,1751941892799,-460.0,0.00031941,7]
[370301311,1751941892809,-460.0,0.00031941,7]
[370301312,1751941892818,-746.74,0.00031941,7]
[370301313,1751941892829,-460.0,0.00031941,7]
[370301314,1751941892839,-460.0,0.00031941,7]
[370301315,1751941892849,-460.0,0.00031941,7]
[370301316,1751941892859,-922.2,0.00031941,7]
[370301317,1751941892867,-806.13,0.00031941,7]
[370301318,1751941892878,-460.0,0.00031941,7]
[370301319,1751941892887,-460.0,0.00031941,7]
[370301320,1751941892897,-460.0,0.00031941,7]
[370301321,1751941892907,-460.0,0.00031941,7]
[370301322,1751941892917,-460.0,0.00031941,7]
[370301323,1751941892927,-460.0,0.00031941,7]
[370301324,1751941892937,-1077.15,0.00031941,7]
[370301325,1751941892947,-1580.18,0.00031941,7]
[370301326,1751941892957,-460.0,0.00031942,7]
[370301327,1751941892967,-460.0,0.00031942,7]
[370301328,1751941892977,-460.0,0.00031942,7]
[370301329,1751941892988,-460.0,0.00031942,7]
[370301330,1751941893001,-460.0,0.00031942,7]
[370301331,1751941893011,-460.0,0.00031942,7]
[370301332,1751941893020,-776.98,0.00031942,7]
[370301333,1751941893031,-460.0,0.00031942,7]
[370301334,1751941893040,-254.64,0.00031942,7]
[370301335,1751941893050,-460.0,0.00031942,7]
[370301336,1751941893060,-460.0,0.00031942,7]
[370301337,1751941893070,-460.0,0.00031942,7]
[370301338,1751941893081,-460.0,0.00031942,7]
[370301339,1751941893091,-615.76,0.00031942,7]
[370301340,1751941893100,-460.0,0.00031942,7]
[370301341,1751941893109,-642.03,0.00031942,7]
[370301342,1751941893119,-460.0,0.00031942,7]
[370301343,1751941893129,-598.85,0.00031942,7]
[370301344,1751941893138,-552.85,0.00031942,7]
[370301345,1751941893148,-460.0,0.00031942,7]
[370301346,1751941893157,-460.0,0.00031942,7]
[370301347,1751941893166,-460.0,0.00031942,7]
[370301348,1751941893175,-460.0,0.00031942,7]
[370301349,1751941893185,-460.0,0.00031942,7]
[370301350,1751941893194,-460.0,0.00031942,7]
[370301351,1751941893203,-154.311021,0.00031953,7]
[370301352,1751941893213,-151.0,0.00031953,7]
[370301353,1751941893222,-151.0,0.00031953,7]
[370301354,1751941893231,-153.12615,0.00031953,7]
[370301355,1751941893241,-151.0,0.00031953,7]
[370301356,1751941893250,-151.0,0.00031953,7]
[370301357,1751941893259,-286.25,0.0003197,2]
[370301358,1751941893268,-400.0,0.00032,120]